[Event "1st Uppsala Festival 2022"]
[Site "Uppsala"]
[Date "2022.08.12"]
[Round "6.1"]
[White "Larkin, Vladyslav"]
[Black "Akesson, Ralf"]
[Result "1-0"]
[ECO "B17"]
[WhiteElo "2455"]
[BlackElo "2427"]
[Annotator "TA"]
[PlyCount "68"]
[EventDate "2022.08.09"]
[EventType "tourn"]
[EventCountry "SWE"]
[SourceTitle "playchess.com"]
[Source "ChessBase"]
[SourceQuality "1"]
[TimeControl "5400+30"]

{[%evp 21,68,40,15,12,19,27,33,22,31,0,0,0,0,-10,0,-4,20,17,20,20,73,74,63,62,72,74,59,70,77,0,0,12,132,33,121,120,274,259,268,264,571,566,556,538,573,575,1035,747,29992]} 1. e4 {[%emt 0:10:00]} c6 {[%emt 0:00:55]} 2. d4 {[%emt 0:00:17]} d5 {[%emt 0:00:11]} 3. Nd2 {[%emt 0:00:05][%cal Bb1d2,Bd2e4,Be4g5][%mdl 32]} dxe4 {[%emt 0:00:26]} 4. Nxe4 {[%emt 0:00:05]} Nd7 {[%emt 0:00:30]} 5. Ng5 {[%emt 0:01:19]} Ngf6 {[%emt 0:00:20]} 6. Bd3 {[%emt 0:00:33]} e6 {[%emt 0:00:27]} 7. N1f3 {[%emt 0:03:35]} Bd6 {[%emt 0:03:05]} 8. Qe2 {[%emt 0:00:30]} h6 {[%emt 0:00:28]} 9. Ne4 {[%emt 0:00:04]} Nxe4 {[%emt 0:00:20]} 10. Qxe4 {[%emt 0:00:06]} Nf6 {[%emt 0:01:38] 10...Qc7 is the fancy move.} 11. Qe2 {[%emt 0:00:19]} Qc7 {[%emt 0:03:21]} 12. O-O {[%emt 0:10:36] [#] B17: Caro-Kann: Modern Line (4...Nd7).} a6 $146 {[%emt 0:14:53]} ({Predecessor:} 12... b6 13. a4 Bb7 14. a5 Rd8 15. Bd2 O-O 16. b4 Rc8 17. axb6 axb6 18. Ba6 b5 19. Bxb7 Qxb7 {½-½ (37) Pena Gomez,M (2492)-Aronyak,G (2486) Barcelona 2022}) 13. c4 {[%emt 0:04:54]} c5 {[%emt 0:03:10]} 14. dxc5 {[%emt 0:01:04] White is slightly better.} Bxc5 {[%emt 0:05:15]} 15. b3 {[%emt 0:00:25][%cal Bb2b3,Bb3b4][%mdl 32]} b6 {[%emt 0:01:27]} 16. Bb2 {[%emt 0:03:05]} Bb7 {[%emt 0:00:16]} 17. a3 {[%emt 0:14:04]} Rd8 {[%emt 0:09:12]} 18. Rad1 {[%emt 0:14:18]} Ng4 {[%emt 0:14:28] [#] Threatens to win with ...Bxf3.} 19. Ne5 {[%emt 0:00:29]} h5 {[%emt 0:02:50]} 20. b4 {[%emt 0:21:00]} Bd4 {[%emt 0:06:13]} (20... Nxe5 $1 $11 {remains equal.} 21. Bxe5 (21. Qxe5 Qxe5 22. Bxe5 Bd4 $11) 21... Qc6) 21. Bxd4 $16 {[%emt 0:00:36]} Rxd4 {[%emt 0:00:08]} 22. f4 {[%emt 0:00:03]} Nxe5 {[%emt 0:03:05]} 23. fxe5 {[%emt 0:00:04]} Rg4 {[%emt 0:01:38]} 24. Rf2 {[%emt 0:00:03]} Rg5 {[%emt 0:01:23]} 25. Re1 {[%emt 0:03:40]} (25. Bc2 $16) 25... h4 $11 {[%emt 0:05:22]} 26. Qe3 $36 {[%emt 0:01:15][%mdl 2048] White fights for an advantage.} Rhh5 {[%emt 0:04:38] [#]} (26... Rg4 $1 $11 {keeps the balance.}) 27. Qf4 {[%emt 0:01:51] White is more active.} (27. Be2 $1 $16 {[%cal Re2h5]} Rxg2+ 28. Rxg2) 27... h3 {[%emt 0:09:44]} (27... f6 $14) 28. g4 $16 {[%emt 0:00:11][%cal Bg2g4,Bg4h5][%mdl 32]} Rxe5 $2 {[%emt 0:01:40] This costs Black the game.} (28... Qe7 $16) 29. Rfe2 $18 {[%emt 0:00:19]} Qc6 {[%emt 0:02:59] ( -> ...Qh1+)} 30. Be4 {[%emt 0:00:08][%mdl 64] Inhibits Qh1+. Skewer} Qxc4 {[%emt 0:00:46]} (30... Rxe4 {is a better chance.} 31. Rxe4 Rh6) 31. gxh5 {[%emt 0:00:56] White is clearly winning.} Qd4+ {[%emt 0:01:49]} 32. Qf2 {[%emt 0:03:18]} Rg5+ {[%emt 0:02:57]} 33. Kf1 {[%emt 0:00:10]} Qd7 {[%emt 0:00:38]} 34. Qf4 {[%emt 0:01:01]} Qc7 {[%emt 0:01:18] Weighted Error Value: White=0.20 (precise) /Black=0.51} 1-0

[Event "1st Uppsala Festival 2022"]
[Site "Uppsala"]
[Date "2022.08.12"]
[Round "6.2"]
[White "Sorensen, Hampus"]
[Black "Lindberg, Bengt"]
[Result "1/2-1/2"]
[ECO "A70"]
[WhiteElo "2376"]
[BlackElo "2370"]
[Annotator "TA"]
[PlyCount "120"]
[EventDate "2022.08.09"]
[EventType "tourn"]
[EventCountry "SWE"]
[SourceTitle "playchess.com"]
[Source "ChessBase"]
[SourceQuality "1"]
[TimeControl "5400+30"]

{[%evp 17,120,46,40,41,58,45,54,28,37,22,25,30,23,24,37,29,41,20,52,29,40,32,29,35,91,91,95,96,106,103,120,118,122,122,128,79,104,75,127,105,198,221,228,210,358,354,332,362,354,356,343,335,317,285,275,272,261,247,259,273,269,264,265,250,331,333,305,314,283,252,234,222,241,236,299,318,280,218,662,179,458,236,1088,1108,889,863,1391,0,0,0,5,8,7,0,0,0,0,-31,0,0,0,0,0,0,0]} 1. d4 {[%emt 0:00:40]} Nf6 {[%emt 0:00:13]} 2. c4 {[%emt 0:00:13]} e6 {[%emt 0:00:16]} 3. Nf3 {[%emt 0:00:08]} c5 {[%emt 0:00:56]} 4. d5 {[%emt 0:00:08]} exd5 {[%emt 0:00:13]} 5. cxd5 {[%emt 0:00:08]} d6 {[%emt 0:00:09]} 6. Nc3 {[%emt 0:00:11]} g6 {[%emt 0:00:29]} 7. e4 {[%emt 0:00:14]} a6 {[%emt 0:00:49]} 8. a4 {[%emt 0:01:29]} Bg4 {[%emt 0:00:18]} 9. Be2 {[%emt 0:04:44]} Bxf3 {[%emt 0:00:09]} 10. Bxf3 {[%emt 0:00:49] A70: Modern Benoni: 6 e4 g6 7 Nf3.} Bg7 {[%emt 0:00:17]} 11. O-O {[%emt 0:11:11]} O-O {[%emt 0:03:48]} 12. Be2 {[%emt 0:01:52] White is slightly better.} Re8 {[%emt 0:01:43]} 13. Qc2 {[%emt 0:00:45]} Nbd7 {[%emt 0:02:25]} 14. Bf4 {[%emt 0:05:53]} (14. Bg5 {with more complications.} c4 15. f3 Qa5 16. Kh1) 14... Qe7 {[%emt 0:07:24][%cal Rf6e4]} 15. Rfe1 {[%emt 0:05:23]} h5 {[%emt 0:01:06]} 16. Bf1 {[%emt 0:06:43]} Rac8 {[%emt 0:02:39]} 17. a5 {[%emt 0:03:14]} Nh7 {[%emt 0:28:29] [#]} 18. Ra3 $146 {[%emt 0:04:36]} ({Predecessor:} 18. h3 Bd4 19. Rad1 Qf6 20. Be3 Ng5 21. f3 Nh7 22. Qb3 Bxe3+ 23. Rxe3 Rb8 24. Na4 {0-1 (48) Miller,B (2368)-Cossette,M (2053) USA 2000}) 18... Ne5 {[%emt 0:02:17]} 19. Nd1 {[%emt 0:02:33]} Nf6 {[%emt 0:06:24]} 20. Bg5 {[%emt 0:07:01]} Qc7 {[%emt 0:00:37]} (20... c4 $14) 21. f4 $1 $16 {[%emt 0:01:00]} Ned7 {[%emt 0:03:15]} 22. Bc4 {[%emt 0:01:53]} b5 {[%emt 0:06:37]} 23. axb6 $1 {[%emt 0:00:22]} Qxb6 {[%emt 0:00:02]} 24. Re2 {[%emt 0:10:53]} (24. Bxa6 $6 c4+ 25. Kh1 Rc7 $11) (24. Rxa6 $6 Qb4 25. Kf1 Nb6 $11) 24... Ra8 {[%emt 0:01:26]} 25. Kh1 {[%emt 0:01:33]} Qb7 {[%emt 0:01:02]} 26. h3 {[%emt 0:01:24]} (26. Rb3 $142 Nb6 27. e5) 26... Nb6 {[%emt 0:00:16] [#]} 27. Ba2 {[%emt 0:00:50]} a5 {[%emt 0:07:05]} (27... c4 $142) 28. Rf3 {[%emt 0:08:31]} Nbd7 {[%emt 0:03:00] [#]} (28... c4 $16 {was necessary.}) 29. e5 $1 $18 {[%emt 0:07:35][%cal Be4e5,Be5e6][%mdl 32]} Nh7 {[%emt 0:02:19]} 30. e6 {[%emt 0:02:18]} (30. exd6 Nxg5 31. fxg5 Qa6 $11) 30... Ndf8 {[%emt 0:07:05]} (30... Nxg5 $142 31. fxg5 Re7 32. exd7 Qxd7) 31. Bh4 {[%emt 0:01:02]} (31. e7 Nd7 $16) 31... Kh8 {[%emt 0:04:48]} 32. f5 {[%emt 0:01:12]} g5 {[%emt 0:01:35]} 33. Bg3 {[%emt 0:00:39]} Rad8 {[%emt 0:07:49]} 34. Nc3 {[%emt 0:00:53] And now Ne4 would win.} Nf6 {[%emt 0:00:00]} 35. Ne4 {[%emt 0:03:14]} Nxe4 {[%emt 0:00:00]} 36. Qxe4 {[%emt 0:00:39]} Bf6 {[%emt 0:00:00]} 37. Be1 {[%emt 0:01:27]} Nh7 {[%emt 0:00:00]} 38. Rb3 {[%emt 0:00:55]} (38. Bxa5 Ra8 $18) 38... Qe7 {[%emt 0:00:00]} 39. Qf3 {[%emt 0:00:56]} (39. Bxa5 $6 Ra8 $16) 39... h4 {[%emt 0:00:00]} 40. Qh5 {[%emt 0:00:53][%cal Oe6f7]} (40. Bxa5 Rb8 41. Rxb8 Rxb8 $18) 40... Rf8 {[%emt 0:00:00]} 41. Bb1 {[%emt 0:00:34] Hoping for Bc3.} (41. Bxa5 $6 Ra8 $18) 41... a4 {[%emt 0:00:00]} 42. Ra3 {[%emt 0:01:11]} Ra8 {[%emt 0:00:00]} 43. b3 {[%emt 0:01:12]} Rab8 {[%emt 0:00:02]} 44. Rxa4 {[%emt 0:00:41] aiming for Bc2.} Rxb3 {[%emt 0:00:03]} 45. Bc2 {[%emt 0:00:13]} Rb7 {[%emt 0:01:32]} 46. Ra6 {[%emt 0:00:27]} Qd8 {[%emt 0:01:44]} 47. Ba5 {[%emt 0:00:41]} Qb8 {[%emt 0:00:17]} (47... Qe7 48. Bd2 (48. exf7 Qxf7 49. Qxf7 Rfxf7 $18) 48... Kg8) 48. Bd2 $2 {[%emt 0:01:03] A strong pair of Bishops.} (48. e7 Rxe7 49. Rxe7) 48... fxe6 $2 {[%emt 0:02:22]} (48... Kg8 {is a better defense.} 49. Re1 Rb2) 49. Rxe6 {[%emt 0:01:13]} (49. fxe6 $142 {[%cal Oe6e7] Intending e7! and mate.} Re7 50. Rf2) 49... Rd7 {[%emt 0:00:12] [#] Inhibits e7.} (49... Rb1+ 50. Bxb1 Qxb1+ 51. Re1 Qxf5) 50. Rxf6 $1 {[%emt 0:00:39][%mdl 512]} Rxf6 {[%emt 0:00:17]} 51. Bc3 {[%emt 0:00:25]} Qd8 {[%emt 0:01:09]} 52. Qg6 $2 {[%emt 0:01:30]} ({White has to play} 52. Ba4 $18 Rg7 53. Bc6) 52... Rg7 $11 {[%emt 0:00:32]} 53. Bxf6 {[%emt 0:00:24]} Nxf6 {[%emt 0:00:09]} 54. Qh6+ {[%emt 0:00:01]} Kg8 {[%emt 0:00:20]} 55. Ba4 {[%emt 0:00:36]} Qe7 {[%emt 0:00:20]} 56. Ra8+ {[%emt 0:00:28]} Kf7 {[%emt 0:00:03]} 57. Qh8 {[%emt 0:00:54]} Qe1+ {[%emt 0:02:15]} 58. Kh2 {[%emt 0:00:02][%csl Ga8][%cal Rh8f8] The position is equal.} Qe5+ {[%emt 0:00:08]} 59. Kh1 {[%emt 0:00:02][%csl Ga8][%cal Rh8f8] Really sharp!} Qe1+ {[%emt 0:00:06]} 60. Kh2 {[%emt 0:00:00][%csl Ga8][%cal Rh8f8]} Qe5+ {[%emt 0:00:44] White really could win this.  Weighted Error Value: White=0.31/Black=0.28 (precise)} 1/2-1/2

[Event "1st Uppsala Festival 2022"]
[Site "Uppsala"]
[Date "2022.08.12"]
[Round "6.3"]
[White "Johansson, Jan"]
[Black "Trost, Edvin"]
[Result "0-1"]
[ECO "B42"]
[WhiteElo "2306"]
[BlackElo "2345"]
[Annotator "TA"]
[PlyCount "54"]
[EventDate "2022.08.09"]
[EventType "tourn"]
[EventCountry "SWE"]
[SourceTitle "playchess.com"]
[Source "ChessBase"]
[SourceQuality "1"]
[TimeControl "5400+30"]

{[%evp 13,54,26,28,20,44,39,41,10,27,31,37,24,70,35,116,97,128,118,128,116,113,126,117,114,89,47,85,78,90,0,32,31,24,0,0,0,11,5,0,-13,-6,-936,-927]} 1. e4 {[%emt 0:00:51]} c5 {[%emt 0:01:13]} 2. Nf3 {[%emt 0:00:17]} e6 {[%emt 0:01:09]} 3. d4 {[%emt 0:00:06]} cxd4 {[%emt 0:00:05]} 4. Nxd4 {[%emt 0:00:05]} a6 {[%emt 0:00:02]} 5. Bd3 {[%emt 0:01:34]} Bc5 {[%emt 0:00:18]} 6. Nb3 {[%emt 0:00:51]} Ba7 {[%emt 0:00:19]} 7. O-O {[%emt 0:01:02]} Ne7 {[%emt 0:02:39]} 8. Qe2 {[%emt 0:02:46] B42: Sicilian: Kan Variation: 5 Bd3.} d6 {[%emt 0:08:19]} 9. Be3 {[%emt 0:01:53]} Nbc6 {[%emt 0:00:21]} 10. N1d2 {[%emt 0:02:36] White is slightly better.} O-O {[%emt 0:02:01]} 11. Bxa7 {[%emt 0:04:31]} Rxa7 {[%emt 0:00:06]} 12. f4 {[%emt 0:03:13][%cal Bf2f4,Bf4e5][%mdl 32]} Ng6 {[%emt 0:13:38] [#]} (12... Nb4 $11 {is more appropriate.}) 13. Qe3 $146 {[%emt 0:07:33]} ({Predecessor:} 13. g3 Nb4 14. h4 h6 15. Nf3 b5 16. a3 Nxd3 17. cxd3 Rc7 18. Rac1 Bb7 19. Qe3 {½-½ (43) Quesada Perez,Y (2567)-Arencibia Rodriguez,W (2534) Havana 2008}) 13... Qf6 {[%emt 0:09:30]} (13... b6 $14) 14. Nc4 $16 {[%emt 0:07:02]} Rd8 {[%emt 0:14:00]} 15. e5 {[%emt 0:07:47]} dxe5 {[%emt 0:00:03]} 16. Bxg6 {[%emt 0:00:07]} hxg6 {[%emt 0:01:49]} 17. fxe5 {[%emt 0:01:52]} Qe7 {[%emt 0:00:02]} 18. Nb6 {[%emt 0:00:49] Inhibits Rd5.} a5 {[%emt 0:04:24]} 19. a4 {[%emt 0:06:39]} Ra6 {[%emt 0:03:41]} 20. Rad1 {[%emt 0:03:44]} Qc7 {[%emt 0:12:03][%csl LRb6,LRe5] [#]} 21. Nxc8 {[%emt 0:15:21] Pair of Knights!} (21. Nc4 $1 $16) 21... Rxd1 {[%emt 0:02:11]} 22. Rxd1 {[%emt 0:00:06]} Qxc8 {[%emt 0:00:02]} 23. Nc5 {[%emt 0:10:00]} Ra8 {[%emt 0:00:01]} 24. c3 {[%emt 0:00:18]} Ne7 {[%emt 0:02:53]} 25. Qf2 {[%emt 0:03:11]} Qe8 {[%emt 0:02:55]} 26. Nxb7 {[%emt 0:04:49] Threatens to win with Nd6.} Qxa4 {[%emt 0:00:02]} 27. Nd6 $2 {[%emt 0:00:15][%mdl 8192] [#]} Qxd1+ {[%emt 0:00:04] Weighted Error Value: White=0.47/Black=0.14 (very precise)} 0-1

[Event "1st Uppsala Festival 2022"]
[Site "Uppsala"]
[Date "2022.08.12"]
[Round "6.4"]
[White "Savitha Shri B"]
[Black "Stefansson, Vignir Vatnar"]
[Result "0-1"]
[ECO "B41"]
[WhiteElo "2278"]
[BlackElo "2461"]
[Annotator "TA"]
[PlyCount "60"]
[EventDate "2022.08.09"]
[EventType "tourn"]
[EventCountry "SWE"]
[SourceTitle "playchess.com"]
[Source "ChessBase"]
[SourceQuality "1"]
[TimeControl "5400+30"]

{[%evp 10,60,62,22,47,49,59,57,53,64,64,36,58,46,48,0,0,-43,-27,-49,-5,-43,-38,-191,-216,-268,-271,-268,-226,-445,-441,-590,-476,-571,-583,-933,-812,-929,-749,-744,-745,-904,-894,-1047,-657,-654,-553,-564,-564,-566,-575,-533,-434]} 1. e4 {[%emt 0:02:09]} c5 {[%emt 0:02:04]} 2. Nf3 {[%emt 0:00:23]} a6 {[%emt 0:00:52]} 3. c4 {[%emt 0:01:47]} e6 {[%emt 0:00:43]} 4. Nc3 {[%emt 0:00:37]} Qc7 {[%emt 0:00:38]} 5. d4 {[%emt 0:03:21]} cxd4 {[%emt 0:00:07]} 6. Nxd4 {[%emt 0:00:03]} b6 {[%emt 0:01:40] B41: Sicilian: Kan Variation: 5 c4.} 7. a3 {[%emt 0:02:28]} Bb7 {[%emt 0:00:43]} 8. Be3 {[%emt 0:03:16]} Nf6 {[%emt 0:00:50] White is slightly better.} 9. f3 {[%emt 0:06:44]} d6 {[%emt 0:00:19]} 10. g4 {[%emt 0:05:10]} h6 {[%emt 0:01:46]} 11. Rc1 {[%emt 0:05:47]} Nbd7 {[%emt 0:02:52] [#]} 12. Qa4 $146 {[%emt 0:01:57]} (12. Kf2 $14) ({Predecessor:} 12. Kd2 Ne5 13. Kc2 Rc8 14. Kb1 Qb8 15. Qb3 Nfd7 16. Be2 Nc5 17. Qd1 Be7 18. h4 {0-1 (49) Paravyan,D (2617)-Salinas Herrera,P (2517) Chess.com INT 2022}) 12... Rc8 $11 {[%emt 0:02:43]} 13. Kd1 {[%emt 0:03:18]} Be7 {[%emt 0:04:30]} 14. h4 {[%emt 0:05:42]} Kf8 {[%emt 0:01:30]} 15. Qc2 {[%emt 0:09:35]} Ne5 {[%emt 0:01:07]} 16. b3 $2 {[%emt 0:03:52] [#] Now White is beyond hope.} ({Better is} 16. Qh2 $15) 16... d5 $19 {[%emt 0:04:16]} 17. exd5 {[%emt 0:04:08]} Bxa3 {[%emt 0:01:35][%cal Re6d5]} 18. Ra1 {[%emt 0:06:23]} Bb4 {[%emt 0:05:07][%cal Ba3b4,Bb4c5,Bc5e3][%mdl 32]} 19. Na2 $2 {[%emt 0:05:43]} (19. Rg1) 19... Bc5 {[%emt 0:01:01] Black is clearly winning.} 20. Nc3 {[%emt 0:06:42]} Nxf3 {[%emt 0:07:47]} 21. Nxf3 {[%emt 0:01:07]} Bxe3 {[%emt 0:00:08]} 22. Ke2 {[%emt 0:04:41]} Bc5 {[%emt 0:00:22][%cal Re6d5]} 23. Bg2 {[%emt 0:04:42]} Qg3 {[%emt 0:00:55]} 24. Kf1 {[%emt 0:00:02]} Nxg4 {[%emt 0:00:16][%cal Bf6g4,Bg4e3,Be3f5,Bf5e3][%mdl 32]} 25. Nd1 {[%emt 0:00:03]} exd5 {[%emt 0:00:55]} 26. Qf5 {[%emt 0:00:17]} dxc4 {[%emt 0:03:05] ( -> ...Rd8)} 27. Rh3 {[%emt 0:02:22] [#]} Qf2+ {[%emt 0:00:07][%mdl 512]} 28. Nxf2 {[%emt 0:00:08]} Ne3+ {[%emt 0:00:03]} 29. Kg1 {[%emt 0:00:45]} Nxf5 {[%emt 0:00:06]} 30. bxc4 {[%emt 0:00:05]} Ne3 {[%emt 0:00:53] Weighted Error Value: White=0.75/Black=0.42} 0-1

[Event "1st Uppsala Festival 2022"]
[Site "Uppsala"]
[Date "2022.08.12"]
[Round "6.5"]
[White "Peng, Li Min"]
[Black "Sriram, Jha"]
[Result "1-0"]
[ECO "D11"]
[WhiteElo "2516"]
[BlackElo "2361"]
[Annotator "TA"]
[PlyCount "65"]
[EventDate "2022.08.09"]
[EventType "tourn"]
[EventCountry "SWE"]
[SourceTitle "playchess.com"]
[Source "ChessBase"]
[SourceQuality "1"]
[TimeControl "5400+30"]

{[%evp 9,65,18,26,27,27,12,18,21,23,25,27,10,29,20,40,30,43,25,42,39,56,41,46,47,69,67,75,39,44,31,38,45,39,43,58,63,72,70,95,95,149,143,165,170,1546,1454,1800,1721,5010,3482,29987,29988,29996,29997,29997,29998,29998,29999]} 1. d4 {[%emt 0:09:00]} d5 {[%emt 0:01:02]} 2. c4 {[%emt 0:00:07]} c6 {[%emt 0:00:03]} 3. Nf3 {[%emt 0:00:08]} Nf6 {[%emt 0:00:04]} 4. e3 {[%emt 0:00:11]} Bg4 {[%emt 0:00:06]} 5. h3 {[%emt 0:00:05]} Bh5 {[%emt 0:00:03]} 6. g4 {[%emt 0:00:08] D11: Slav Defence: 3 Nf3 sidelines and 3...Nf6 4 e3 Bg4.} Bg6 {[%emt 0:00:02]} 7. Ne5 {[%emt 0:00:06]} e6 {[%emt 0:02:47]} 8. Nc3 {[%emt 0:00:22] The position is equal.} Nbd7 {[%emt 0:00:29]} 9. Nxg6 {[%emt 0:00:28]} hxg6 {[%emt 0:00:07]} 10. Bd2 {[%emt 0:00:33]} (10. g5 $5 {[%cal Rg5f6]} Ne4 11. Nxe4 dxe4 12. h4 $11) 10... dxc4 {[%emt 0:09:25]} 11. Bxc4 {[%emt 0:02:38]} Be7 {[%emt 0:05:19]} 12. Qf3 {[%emt 0:08:15] [#]} Bb4 $146 {[%emt 0:11:57]} ({Predecessor:} 12... Nb6 13. Bb3 Nbd5 14. O-O-O a5 15. e4 Nxc3 16. Bxc3 a4 17. Bc2 Qb6 18. g5 Nd7 {0-1 (71) Assaubayeva,B (2378)-Gunina,V (2427) Europe Echecs INT 2021}) 13. O-O-O {[%emt 0:07:24]} Nb6 {[%emt 0:08:54]} 14. Bb3 {[%emt 0:01:41]} Nbd5 {[%emt 0:14:24]} 15. g5 {[%emt 0:07:08]} Nd7 {[%emt 0:04:50]} 16. h4 {[%emt 0:03:06]} ({Reject} 16. Nxd5 Bxd2+ 17. Rxd2 cxd5 $11) 16... Nxc3 {[%emt 0:03:05]} 17. bxc3 {[%emt 0:00:06]} Ba3+ {[%emt 0:00:09]} 18. Kc2 {[%emt 0:00:04] White is more active.} Qe7 {[%emt 0:00:11]} 19. h5 {[%emt 0:02:47]} Rxh5 {[%emt 0:09:01]} 20. Rxh5 {[%emt 0:00:13]} gxh5 {[%emt 0:00:02]} 21. Qxh5 {[%emt 0:00:09]} g6 {[%emt 0:00:10]} 22. Qg4 {[%emt 0:02:50]} O-O-O {[%emt 0:01:04]} 23. Rh1 {[%emt 0:00:05][%cal Bd1h1,Bh1h7,Bh7h8][%mdl 32]} Nb6 {[%emt 0:10:04]} 24. Rh7 {[%emt 0:00:47][%cal Oh7f7] Strongly threatening Rxf7!} Rd7 {[%emt 0:00:08] [#]} ({Better is} 24... Nd7) 25. c4 $1 $16 {[%emt 0:14:16]} c5 {[%emt 0:04:17] [#]} 26. Qf4 $1 {[%emt 0:02:33]} Rc7 $2 {[%emt 0:05:11]} (26... Qe8 27. dxc5 Bxc5) 27. Rh8+ $18 {[%emt 0:01:22]} Kd7 {[%emt 0:00:03]} 28. Ba5 {[%emt 0:00:12][%cal Ob3a4] White threatens Ba4+! and mate.} e5 {[%emt 0:02:29]} 29. dxe5 {[%emt 0:00:56][%cal Ob3a4] Threatening mate with Ba4+!} Rc8 {[%emt 0:02:24] [#]} 30. Ba4+ $1 {[%emt 0:12:12][%mdl 512] White mates.} Nxa4 {[%emt 0:02:32]} (30... Rc6 31. Qg4+) 31. Qg4+ {[%emt 0:00:02][%mdl 64] Skewer} Qe6 {[%emt 0:00:28]} 32. Qd1+ {[%emt 0:00:02]} Ke7 {[%emt 0:01:58]} 33. Bd8+ {[%emt 0:00:04] Weighted Error Value: White=0.05 (flawless) /Black=0.45} 1-0

[Event "1st Uppsala Festival 2022"]
[Site "Uppsala"]
[Date "2022.08.12"]
[Round "7.1"]
[White "Akesson, Ralf"]
[Black "Sorensen, Hampus"]
[Result "1/2-1/2"]
[ECO "D24"]
[WhiteElo "2427"]
[BlackElo "2376"]
[Annotator "TA"]
[PlyCount "89"]
[EventDate "2022.08.09"]
[EventType "tourn"]
[EventCountry "SWE"]
[SourceTitle "playchess.com"]
[Source "ChessBase"]
[SourceQuality "1"]
[TimeControl "5400+30"]

{[%evp 9,89,29,47,44,47,42,37,43,43,43,43,0,66,26,54,50,54,57,58,58,63,70,70,4,13,0,0,0,0,0,13,0,40,53,44,11,15,8,53,0,0,0,0,0,0,-10,0,-9,-9,-9,-9,-10,-8,-28,-15,-141,-147,-147,-144,-204,-167,-167,-170,-157,-162,-146,-133,-120,-89,-89,-59,-158,-72,-69,-38,-38,-29,-31,-24,-24,-24,-33]} 1. d4 {[%emt 0:04:30]} Nf6 {[%emt 0:00:34]} 2. Nf3 {[%emt 0:00:43]} d5 {[%emt 0:00:21]} 3. c4 {[%emt 0:00:08]} e6 {[%emt 0:00:13]} 4. Nc3 {[%emt 0:00:44]} dxc4 {[%emt 0:00:25]} 5. e4 {[%emt 0:01:12][%cal Be2e4,Be4e5][%mdl 32]} b5 {[%emt 0:01:31]} 6. e5 {[%emt 0:00:19] D24: Queen's Gambit Accepted: 3 Nf3 Nf6 4 Nc3.} Nd5 {[%emt 0:00:05]} 7. Nxb5 {[%emt 0:00:08]} Nb6 {[%emt 0:00:06]} 8. Be2 {[%emt 0:01:34] White is slightly better.} Nc6 {[%emt 0:00:36]} 9. O-O {[%emt 0:01:17]} Be7 {[%emt 0:00:25]} 10. a4 {[%emt 0:16:35] 10.Qd2 is becoming the main line.} a5 {[%emt 0:04:07] [#]} (10... Na5 $11) 11. Bd2 $146 {[%emt 0:07:14] White is more active.} ({Predecessor:} 11. Be3 Ba6 12. Nd2 O-O 13. Nxc4 Nd5 14. Nc3 Ncb4 15. Nxd5 Nxd5 16. Bd2 c5 17. dxc5 Bxc5 {½-½ (24) Fedoseev,V (2678)-Xiong,J (2709) Chess.com INT 2020}) 11... Ba6 {[%emt 0:11:11]} 12. Qc2 {[%emt 0:15:51]} O-O {[%emt 0:23:57]} 13. Bxc4 {[%emt 0:10:29]} Bxb5 {[%emt 0:00:23]} 14. Bxb5 {[%emt 0:01:20]} Nxd4 {[%emt 0:00:23]} 15. Nxd4 {[%emt 0:00:51]} Qxd4 {[%emt 0:00:08]} 16. Rfe1 {[%emt 0:04:56]} ({Reject} 16. Qxc7 Qxd2 17. Qxb6 (17. Qxe7 Qxb2 18. Qc5 Nd5 $11) 17... Bb4 $11) (16. Bc6 $1 $14) 16... Nd5 $11 {[%emt 0:02:24]} 17. Re4 {[%emt 0:01:51]} Qb6 {[%emt 0:00:32]} 18. Rg4 {[%emt 0:05:14]} Rfd8 {[%emt 0:06:18]} 19. Bh6 {[%emt 0:04:24] This bishop pair is nice.} g6 {[%emt 0:00:28][%cal Oc7c6]} 20. h4 {[%emt 0:01:07][%cal Bh2h4,Bh4h5][%mdl 32]} Nb4 {[%emt 0:04:12]} 21. Qe4 {[%emt 0:04:20] [#] Strongly threatening h5.} Bf8 {[%emt 0:11:53]} 22. Bxf8 {[%emt 0:05:20]} Rxf8 {[%emt 0:00:16]} 23. h5 {[%emt 0:00:13]} Nd5 {[%emt 0:02:12]} 24. Ra3 {[%emt 0:05:11]} (24. hxg6 $14 fxg6 25. Rxg6+ Kh8 26. Rh6 Qxf2+ 27. Kh2 (27. Kh1 Rf5 $14) 27... Qf4+ 28. Qxf4 Nxf4 29. Rc1) 24... f5 {[%emt 0:02:57]} 25. exf6 $1 {[%emt 0:00:09]} Nxf6 {[%emt 0:00:15]} 26. Rxg6+ $1 {[%emt 0:00:22]} hxg6 {[%emt 0:00:47]} 27. Qxg6+ {[%emt 0:00:08]} Kh8 {[%emt 0:00:02] ...Nh7 is the strong threat.} 28. Rg3 {[%emt 0:03:37][%csl Gg3][%cal Rg6g7] [#]} Ng4 $1 {[%emt 0:01:09]} 29. Rxg4 {[%emt 0:01:52][%csl Gg4][%cal Rg6g7] The board is on fire.} Qxf2+ {[%emt 0:00:34]} 30. Kh2 {[%emt 0:00:16][%csl Gg4][%cal Rg6g7]} Qf6 {[%emt 0:01:18] Prevents Qg7+.} 31. Qe4 {[%emt 0:01:28]} Qf5 {[%emt 0:06:31]} 32. Qxf5 {[%emt 0:00:58]} (32. Be2 $11) 32... Rxf5 {[%emt 0:00:41][%mdl 4096] Endgame KRR-KRB} 33. Rh4 {[%emt 0:00:57]} Rd8 {[%emt 0:00:56]} 34. Bc4 {[%emt 0:00:26]} (34. b3 $17 {was necessary.}) 34... e5 {[%emt 0:00:49]} 35. b3 {[%emt 0:00:47]} Rd4 {[%emt 0:04:32]} 36. Rh3 {[%emt 0:00:43]} Rff4 {[%emt 0:05:43]} 37. Kg1 {[%emt 0:00:54]} e4 {[%emt 0:01:52]} 38. Be2 {[%emt 0:00:30]} c5 {[%emt 0:01:17]} 39. Re3 {[%emt 0:00:42]} Kh7 {[%emt 0:00:30]} 40. g3 {[%emt 0:00:30]} (40. Kh2 $1 $15) 40... Rf5 {[%emt 0:00:07]} ({Better is} 40... Rf6 41. g4 Kh6) 41. g4 $17 {[%emt 0:00:28]} Re5 {[%emt 0:00:55]} 42. Kf2 $1 {[%emt 0:00:19]} Kh6 {[%emt 0:00:10] Black wants to play ...Kg5.} 43. Rc3 {[%emt 0:00:21]} Kg5 {[%emt 0:01:07] aiming for ...Kf4.} 44. Ke3 {[%emt 0:00:07]} Rb4 {[%emt 0:00:11]} 45. Bd1 {[%emt 0:00:59] Weighted Error Value: White=0.18 (very precise) /Black=0.15 (very precise)} 1/2-1/2